Body Name,Body,Service Level,Expense Type,Expense Code,Narrative,Date,Transaction Number,Amount,Capital and Revenue,Supplier Name,Supplier ID
South Ribble Council,http://statistics.data.gov.uk/doc/local-authority/30UN,Property Services,Rep & Maint Premises,2020,Annual Contract for 2016 - 2017 for sweeping the various properties in Worden and Hurst Grange Parks ADDRESS REDACTED,03/08/2016,425869,50.00,Revenue, Mr Stuart Hardacre T/A Penwortham chimney Sweep,131451
South Ribble Council,http://statistics.data.gov.uk/doc/local-authority/30UN,Property Services,Rep & Maint Premises,2020,Annual Contract for 2016 - 2017 for sweeping the various properties in Worden and Hurst Grange Parks ADDRESS REDACTED,03/08/2016,425869,90.00,Revenue, Mr Stuart Hardacre T/A Penwortham chimney Sweep,131451
South Ribble Council,http://statistics.data.gov.uk/doc/local-authority/30UN,Property Services,Rep & Maint Premises,2020,Annual Contract for 2016 - 2017 for sweeping the various properties in Worden and Hurst Grange Parks ADDRESS REDACTED,03/08/2016,425869,50.00,Revenue, Mr Stuart Hardacre T/A Penwortham chimney Sweep,131451
South Ribble Council,http://statistics.data.gov.uk/doc/local-authority/30UN,Property Services,Rep & Maint Premises,2020,Annual Contract for 2016 - 2017 for sweeping the various properties in Worden and Hurst Grange Parks ADDRESS REDACTED,03/08/2016,425869,50.00,Revenue, Mr Stuart Hardacre T/A Penwortham chimney Sweep,131451
South Ribble Council,http://statistics.data.gov.uk/doc/local-authority/30UN,Property Services,Rep & Maint Premises,2020,Annual Contract for 2016 - 2017 for sweeping the various properties in Worden and Hurst Grange Parks ADDRESS REDACTED,03/08/2016,425869,50.00,Revenue, Mr Stuart Hardacre T/A Penwortham chimney Sweep,131451
South Ribble Council,http://statistics.data.gov.uk/doc/local-authority/30UN,Property Services,Rep & Maint Premises,2020,Annual Contract for 2016 - 2017 for sweeping the various properties in Worden and Hurst Grange Parks ADDRESS REDACTED,03/08/2016,425869,50.00,Revenue, Mr Stuart Hardacre T/A Penwortham chimney Sweep,131451
South Ribble Council,http://statistics.data.gov.uk/doc/local-authority/30UN,Property Services,Rep & Maint Premises,2020,Please complete the 3D CAD of Penwortham Holme for NAME REDACTED,24/08/2016,426288,250.00,Revenue,4DCAD Ltd,131995
South Ribble Council,http://statistics.data.gov.uk/doc/local-authority/30UN,Property Services,Rep & Maint Premises,2020,"update the drawings for Moss Side depot services - line drawings,  fire & lighting as discussed on site with Property Services",24/08/2016,426288,50.00,Revenue,4DCAD Ltd,131995
South Ribble Council,http://statistics.data.gov.uk/doc/local-authority/30UN,Information Services,Peripherals,4248,Provision of services. SSL security on test site for SRBC for period 01/07/16 - 30/06/17,05/08/2016,425966,659.00,Revenue,ABRITAS LTD,130710
South Ribble Council,http://statistics.data.gov.uk/doc/local-authority/30UN,Information Services,Peripherals,4248,Additional charge to SRBC for exceeding Data Storage  & Recovery quota for period April 2016 to June 2016,05/08/2016,425967,498.96,Revenue,ABRITAS LTD,130710
South Ribble Council,http://statistics.data.gov.uk/doc/local-authority/30UN,Information Services,Peripherals,4248,Provision of Services.  SSL security on test site for Accent Foundation for period 01/07/16 - 30/06/17,05/08/2016,425968,659.00,Revenue,ABRITAS LTD,130710
South Ribble Council,http://statistics.data.gov.uk/doc/local-authority/30UN,Information Services,Peripherals,4248,Provision of services. SSL security on test site for New Progress for period 01/07/16 - 30/06/17,05/08/2016,425969,659.00,Revenue,ABRITAS LTD,130710
South Ribble Council,http://statistics.data.gov.uk/doc/local-authority/30UN,Homelessness,Contractors Charges 5,5311,management fee for temporary accommodation - 1500,24/08/2016,426235,"1,500.00",Revenue,ACCENT FOUNDATION,15820
South Ribble Council,http://statistics.data.gov.uk/doc/local-authority/30UN,Area 2 - Waste Transport/Eastern & Central Teams,External Contractors Charges,4570,12month R&M contract on the mini sweeper - AE12AXR - PD,03/08/2016,425530,"6,954.00",Revenue,AEBI SCHMIDT UK LTD,85672
South Ribble Council,http://statistics.data.gov.uk/doc/local-authority/30UN,HR & Communications,Training Expense-Course Fees,1402,LEAD AUDITOR TRAINING COURSE FOR NAME REDACTED 12/9/16 - 16/9/16 IN MANCHESTER,03/08/2016,425878,"1,095.00",Revenue,ALCUMUS ISOQAR LTD,131571
South Ribble Council,http://statistics.data.gov.uk/doc/local-authority/30UN,Revenues Plus,Financial,4811,post office trans,10/08/2016,425961,"1,291.31",Revenue,ALLPAY LTD,122276
South Ribble Council,http://statistics.data.gov.uk/doc/local-authority/30UN,Revenues Plus,Financial,4811,paypoint trans,10/08/2016,425961,188.52,Revenue,ALLPAY LTD,122276
South Ribble Council,http://statistics.data.gov.uk/doc/local-authority/30UN,Revenues Plus,Financial,4811,wbconnect,10/08/2016,425961,46.05,Revenue,ALLPAY LTD,122276
South Ribble Council,http://statistics.data.gov.uk/doc/local-authority/30UN,Regeneration,Other Misc,4851,"Printing 2500 double sided A4 flyers, standard copier paper Gregson Green newsletter (Eastern project Gregson Lane)",10/08/2016,425949,255.00,Revenue,AMJ LTD (THE STATIONERY STORE),96946
South Ribble Council,http://statistics.data.gov.uk/doc/local-authority/30UN,Housing,Cap Grant- Improve Grants,C570,Disabled Adaptation work at ADDRESS REDACTED as per your quote excluding client contribution of  2049.64,24/08/2016,426293,"2,050.36",Revenue,APG DOMESTIC SERVICES,61463
South Ribble Council,http://statistics.data.gov.uk/doc/local-authority/30UN,Information Services,Peripherals,4248,APT BACS iConnect 3 User Licence - annual charge for software maintenance commencing September 2016,26/08/2016,426450,399.00,Revenue,APT LTD,130261
South Ribble Council,http://statistics.data.gov.uk/doc/local-authority/30UN,Information Services,Peripherals,4248,APT BACS iConnect Additional Licence - annual charge for software maintenance commencing September 2016,26/08/2016,426450,179.00,Revenue,APT LTD,130261
South Ribble Council,http://statistics.data.gov.uk/doc/local-authority/30UN,Development Enterprise & Comm Mgnt,Other Misc,4851,Edit and Design of Business Model and Plan for Colocating Services in South Ribble,24/08/2016,426295,540.00,Revenue,ARMSTRONG CONSULTING,131444
South Ribble Council,http://statistics.data.gov.uk/doc/local-authority/30UN,Property Services,Rep & Maint Premises,2020,Annual Contract 2016/2017 Electrical Testing and Electrical  Installation Test at Public Conveniences,10/08/2016,425824,301.29,Revenue,BELEC ELECTRICAL LTD,130290
South Ribble Council,http://statistics.data.gov.uk/doc/local-authority/30UN,Property Services,Rep & Maint Premises,2020,Annual Contract 2016/2017 Electrical Testing and Fan Convector Maintenance at ADDRESS REDACTED,10/08/2016,425825,338.34,Revenue,BELEC ELECTRICAL LTD,130290
South Ribble Council,http://statistics.data.gov.uk/doc/local-authority/30UN,Property Services,Rep & Maint Premises,2020,Annual Contract 2016/2017 Electrical Testing and Electrical  Installation Test at Public Conveniences,10/08/2016,425826,364.14,Revenue,BELEC ELECTRICAL LTD,130290
South Ribble Council,http://statistics.data.gov.uk/doc/local-authority/30UN,Information Services,Peripherals,4248,2nd phase of generator installation,10/08/2016,426001,960.00,Revenue,BELEC ELECTRICAL LTD,130290
South Ribble Council,http://statistics.data.gov.uk/doc/local-authority/30UN,Property Services,Rep & Maint Premises,2020,Penwortham Holme.Please supply and fit a new mains board to the electrical supplies.Connect u all services. remove the supply,12/08/2016,426002,610.12,Revenue,BELEC ELECTRICAL LTD,130290
South Ribble Council,http://statistics.data.gov.uk/doc/local-authority/30UN,Development Enterprise & Comm Mgnt,Other Misc,485A,Coastal Communities Fund Small Business Grant of 500.00,24/08/2016,426315,500.00,Revenue,BILLYS PARTYTIME ENTERTAINMENTS,131154
South Ribble Council,http://statistics.data.gov.uk/doc/local-authority/30UN,Healthy Communities,Clothing- Uniforms & Laundry,4420,"Outstanding bill , invoices sent to caretakers by mistake",31/08/2016,426462,342.88,Revenue,BLACKPOOL LAUNDRY COMPANY LTD,119085
South Ribble Council,http://statistics.data.gov.uk/doc/local-authority/30UN,Property Services,Rep & Maint Premises,2020,"Annual contract 2016 / 2017 for care plan 3 at Citizens advice bureau, ADDRESS REDACTED",17/08/2016,426229,288.68,Revenue,BRITISH GAS SERVICES (COMMERCIAL) LTD,16214
South Ribble Council,http://statistics.data.gov.uk/doc/local-authority/30UN,Area 3 - Parks/Leyland East West,Capital Expenditure,C230,130m BX35 6X33mm Chain,17/08/2016,425918,552.50,Revenue,BROXAP LTD,28736
South Ribble Council,http://statistics.data.gov.uk/doc/local-authority/30UN,Area 3 - Parks/Leyland East West,Capital Expenditure,C230,Delivery,17/08/2016,425918,70.00,Revenue,BROXAP LTD,28736
South Ribble Council,http://statistics.data.gov.uk/doc/local-authority/30UN,Environmental Health,Operational Furniture & Equip,4010,"1 - New Trigger switch, small connecter - per NAME REDACTED. 321 + 15 carriage",10/08/2016,425919,336.00,Revenue,BRUEL & KJAER UK LTD,61324
South Ribble Council,http://statistics.data.gov.uk/doc/local-authority/30UN,Area 3 - Parks/Leyland East West,Grounds Maint Cntrctrs Chgs,4657,Bosch GRL 500H Laser Level Set,17/08/2016,426053,654.38,Revenue,C & W BERRY LTD,15231
South Ribble Council,http://statistics.data.gov.uk/doc/local-authority/30UN,Neighbourhood Admin & Support,Materials General,4040,RAWL BOLT - M10 X 50L - 03070216,26/08/2016,426381,48.33,Revenue,C & W BERRY LTD,15231
South Ribble Council,http://statistics.data.gov.uk/doc/local-authority/30UN,Neighbourhood Admin & Support,Materials General,4040,Fast Set Post Mix - 02110336,26/08/2016,426381,257.40,Revenue,C & W BERRY LTD,15231
South Ribble Council,http://statistics.data.gov.uk/doc/local-authority/30UN,Revenues Plus,Peripherals,4242,Consultancy,24/08/2016,426237,"4,750.00",Revenue,CAPITA BUSINESS SERVICES LTD,117948
South Ribble Council,http://statistics.data.gov.uk/doc/local-authority/30UN,Property Services,Rep & Maint Premises,2020,Annual Contract for 2016/212017 for the Civic Centre site details D562822 - incl 1 x  CBR filter change and 1 x  Sediment Filter ,26/08/2016,426259,402.31,Revenue,CASCADE WATER SYSTEMS LTD,63924
South Ribble Council,http://statistics.data.gov.uk/doc/local-authority/30UN,Area 3 - Parks/Leyland East West,Grounds Maint Cntrctrs Chgs,4657,2no Woodstock Large Mobility Gates with Plain Hoops Non-self closing Galvanised only,26/08/2016,426296,620.00,Revenue,CENTREWIRE,131861
South Ribble Council,http://statistics.data.gov.uk/doc/local-authority/30UN,Area 3 - Parks/Leyland East West,Grounds Maint Cntrctrs Chgs,4657,1no single leaf 900mm Wide Estate Fence Gate Galvanised only.,26/08/2016,426296,225.00,Revenue,CENTREWIRE,131861
South Ribble Council,http://statistics.data.gov.uk/doc/local-authority/30UN,Area 3 - Parks/Leyland East West,Grounds Maint Cntrctrs Chgs,4657,Delivery,26/08/2016,426296,100.00,Revenue,CENTREWIRE,131861
South Ribble Council,http://statistics.data.gov.uk/doc/local-authority/30UN,Homelessness,Contractors Charges 5,5311,NAME REDACTED SRBC placement Cotswold house 28 days from 04.07.2016  31 07.2016 inc. Total 987.96.,12/08/2016,426147,987.96,Revenue,CHORLEY BOROUGH COUNCIL,17352
South Ribble Council,http://statistics.data.gov.uk/doc/local-authority/30UN,Homelessness,Contractors Charges 5,5311,"Rent costs August 2016, ADDRESS REDACTED - SRBC placements",24/08/2016,426347,"1,093.68",Revenue,CHORLEY BOROUGH COUNCIL,17352
South Ribble Council,http://statistics.data.gov.uk/doc/local-authority/30UN,Homelessness,Contractors Charges 5,5311,"Agreed payment of unpaid VAT amounts Invoice No: 4036182 for NAME REDACTED, 28 days stay in ADDRESS REDACTED. ",31/08/2016,426357,472.80,Revenue,CHORLEY BOROUGH COUNCIL,17352
South Ribble Council,http://statistics.data.gov.uk/doc/local-authority/30UN,Area 2 - Waste Transport/Eastern & Central Teams,Materials General,4040,"1 hose, PJ62 UCM, JFC7244, (NAME REDACTED)",12/08/2016,426074,384.98,Revenue,CICELEY COMMERCIALS LTD,59381
South Ribble Council,http://statistics.data.gov.uk/doc/local-authority/30UN,Area 2 - Waste Transport/Eastern & Central Teams,External Contractors Charges,4570,SPEC REPAIR - PJ62UCM - JFC7244,24/08/2016,426297,"1,022.99",Revenue,CICELEY COMMERCIALS LTD,59381
South Ribble Council,http://statistics.data.gov.uk/doc/local-authority/30UN,Environmental Health,Operational Furniture & Equip,4010,Recalibration of Noise Equip as per NAME REDACTED,03/08/2016,425795,388.00,Revenue,CIRRUS RESEARCH PLC,131450
South Ribble Council,http://statistics.data.gov.uk/doc/local-authority/30UN,Information Services,Peripherals,4248,ICON annual support & maintenance for period 01/10/16 - 30/09/17,31/08/2016,426421,"17,800.00",Revenue,CIVICA UK LTD,102717
South Ribble Council,http://statistics.data.gov.uk/doc/local-authority/30UN,HR & Communications,Balance Sheet,30,CHILDCARE VOUCHERS AUGUST 2016,17/08/2016,426012,"2,755.02",Revenue,COMPUTERSHARE VOUCHER SERVICES,116499
South Ribble Council,http://statistics.data.gov.uk/doc/local-authority/30UN,Property Services,Capital Expenditure,C230,Electrical upgrading works to roofing at the Civic Centre,03/08/2016,425868,895.21,Revenue,COWAN & CO,130183
South Ribble Council,http://statistics.data.gov.uk/doc/local-authority/30UN,HR & Communications,Training Expense-Course Fees,1408,BIKE PACKAGE FOR NAME REDACTED,10/08/2016,426013,454.17,Revenue,CYCLESCHEME CO  UK,130237
South Ribble Council,http://statistics.data.gov.uk/doc/local-authority/30UN,Information Services,Peripherals,4245,Annual Disaster Recovery Services 1/4/16 to 31/3/17,05/08/2016,425906,"2,454.89",Revenue,DAISY IT CONTINUITY and RESILIENCE SERVICES LTD,131708
South Ribble Council,http://statistics.data.gov.uk/doc/local-authority/30UN,Information Services,Peripherals,4247,Annual hardware maintenance contract on TL2000 Tape System for period 15/05/16 - 14/05/17,17/08/2016,426233,533.00,Revenue,Daisy Partner Services Ltd,131494
South Ribble Council,http://statistics.data.gov.uk/doc/local-authority/30UN,Area 2 - Waste Transport/Eastern & Central Teams,External Contractors Charges,4570,SPEC REPAIR - PL08 MLK - JFC7114 - GA,12/08/2016,426140,545.05,Revenue,DAVAND LTD (trading as Longton Coachcraft),131579
South Ribble Council,http://statistics.data.gov.uk/doc/local-authority/30UN,Property Services,Rep & Maint Premises,2020,Pick up the 38` X 8`6`` metal container from Penwortham Holme ADDRESS REDACTED 3rd August 2016 at 0.700hrs and deliver,17/08/2016,426200,395.00,Revenue,David Stanley Sales Ltd T/A David Stanley Transpor,132022
South Ribble Council,http://statistics.data.gov.uk/doc/local-authority/30UN,Area 2 - Waste Transport/Eastern & Central Teams,Materials General,4040,N/S seat bench - VK09AHJ - JFC7088 - PD,10/08/2016,425796,600.00,Revenue,DENNIS EAGLE LTD,19774
South Ribble Council,http://statistics.data.gov.uk/doc/local-authority/30UN,Area 2 - Waste Transport/Eastern & Central Teams,External Contractors Charges,4570,SPEC REPAIR - VN10DKL - 7249,24/08/2016,426141,415.70,Revenue,DENNIS EAGLE LTD,19774
South Ribble Council,http://statistics.data.gov.uk/doc/local-authority/30UN,Area 2 - Waste Transport/Eastern & Central Teams,External Contractors Charges,4570,SPEC REPAIR - VN10DKO - JFC 7283,24/08/2016,426299,269.36,Revenue,DENNIS EAGLE LTD,19774
South Ribble Council,http://statistics.data.gov.uk/doc/local-authority/30UN,Neighbourhood Admin & Support,Materials General,4040,200kg PROMASTER 79 @ 1.95,03/08/2016,425930,434.00,Revenue,DLF TRIFOLIUM LTD,9632
South Ribble Council,http://statistics.data.gov.uk/doc/local-authority/30UN,Property Services,Capital Fees,C210,"Investment acquisition of the Momentum Business Park, South Rings, Bamber Bridge, Preston Fee basis 1% of the sale price",17/08/2016,426219,"5,800.00",Revenue,DTZ Debenham Tie Leung Ltd,131945
South Ribble Council,http://statistics.data.gov.uk/doc/local-authority/30UN,Property Services,Professional Fees,4510,Please carry out a District Property  Portfolio review. In conjunction with NAME REDACTED - Property Services,24/08/2016,426289,"10,000.00",Revenue,DTZ Debenham Tie Leung Ltd,131945
South Ribble Council,http://statistics.data.gov.uk/doc/local-authority/30UN,Area 3 - Parks/Leyland East West,Operational Furniture & Equip,4010,3 x WHEELISTAT TYPE A SINGLE WITH ROOTFAST ANCHOR GALVANISED POS LID RESTRICTOR FOR SINGLE ,03/08/2016,425717,324.00,Revenue,EARTH ANCHORS LTD,20925
South Ribble Council,http://statistics.data.gov.uk/doc/local-authority/30UN,Area 3 - Parks/Leyland East West,Operational Furniture & Equip,4010,delivery,03/08/2016,425717,28.00,Revenue,EARTH ANCHORS LTD,20925
South Ribble Council,http://statistics.data.gov.uk/doc/local-authority/30UN,Information Services,Peripherals,4260,Peripherals,05/08/2016,425971,"2,280.39",Revenue,EE Ltd,131653
South Ribble Council,http://statistics.data.gov.uk/doc/local-authority/30UN,Information Services,Peripherals,4260,Peripherals,05/08/2016,425971,6.75,Revenue,EE Ltd,131653
South Ribble Council,http://statistics.data.gov.uk/doc/local-authority/30UN,Regeneration,Other Misc,4851,Breastfeeding Pilot - Leyland Part of Street Checks and Healthy Steps Project,12/08/2016,426154,"1,000.00",Revenue,Families and Babies,132036
South Ribble Council,http://statistics.data.gov.uk/doc/local-authority/30UN,Area 2 - Waste Transport/Eastern & Central Teams,External Contractors Charges,4570,CLINICAL WASTE - JULY 2016,10/08/2016,426036,397.06,Revenue,FCC Environment Services (UK) Ltd,131612
South Ribble Council,http://statistics.data.gov.uk/doc/local-authority/30UN,Area 2 - Waste Transport/Eastern & Central Teams,External Contractors Charges,4570,RESIDUAL WASTE - JULY 2016,24/08/2016,426290,"41,066.77",Revenue,FCC Environment Services (UK) Ltd,131612
South Ribble Council,http://statistics.data.gov.uk/doc/local-authority/30UN,Area 2 - Waste Transport/Eastern & Central Teams,External Contractors Charges,4570,DRY RECYCLABLE (NON TERRACED) JULY 2016,24/08/2016,426290,"42,052.21",Revenue,FCC Environment Services (UK) Ltd,131612
South Ribble Council,http://statistics.data.gov.uk/doc/local-authority/30UN,Area 2 - Waste Transport/Eastern & Central Teams,External Contractors Charges,4570,DRY RECYCLABLE (TERRACED) JULY 2016,24/08/2016,426290,"1,995.32",Revenue,FCC Environment Services (UK) Ltd,131612
South Ribble Council,http://statistics.data.gov.uk/doc/local-authority/30UN,Area 2 - Waste Transport/Eastern & Central Teams,External Contractors Charges,4570,ORGANIC WASTE (NON TERRACE) JULY 2016,24/08/2016,426290,"29,158.23",Revenue,FCC Environment Services (UK) Ltd,131612
South Ribble Council,http://statistics.data.gov.uk/doc/local-authority/30UN,Area 2 - Waste Transport/Eastern & Central Teams,External Contractors Charges,4570,SCHEDULE 2 PROPERTIES - JULY 2016,24/08/2016,426290,"1,666.50",Revenue,FCC Environment Services (UK) Ltd,131612
South Ribble Council,http://statistics.data.gov.uk/doc/local-authority/30UN,Area 2 - Waste Transport/Eastern & Central Teams,External Contractors Charges,4570,COMMERCIAL WASTE - JULY 2016,24/08/2016,426290,"6,522.89",Revenue,FCC Environment Services (UK) Ltd,131612
South Ribble Council,http://statistics.data.gov.uk/doc/local-authority/30UN,Area 2 - Waste Transport/Eastern & Central Teams,External Contractors Charges,4570,BULKY WASTE - JULY 2016,24/08/2016,426290,902.24,Revenue,FCC Environment Services (UK) Ltd,131612
South Ribble Council,http://statistics.data.gov.uk/doc/local-authority/30UN,Area 2 - Waste Transport/Eastern & Central Teams,External Contractors Charges,4570,WEEE COLLECTIONS - JULY 2016,24/08/2016,426290,337.57,Revenue,FCC Environment Services (UK) Ltd,131612
South Ribble Council,http://statistics.data.gov.uk/doc/local-authority/30UN,Area 2 - Waste Transport/Eastern & Central Teams,External Contractors Charges,4570,CLINICAL WASTE - JULY 2016,24/08/2016,426290,574.92,Revenue,FCC Environment Services (UK) Ltd,131612
South Ribble Council,http://statistics.data.gov.uk/doc/local-authority/30UN,Area 2 - Waste Transport/Eastern & Central Teams,External Contractors Charges,4570,REPLACEMENT BINS - JULY 2016,24/08/2016,426290,"5,000.00",Revenue,FCC Environment Services (UK) Ltd,131612
South Ribble Council,http://statistics.data.gov.uk/doc/local-authority/30UN,Area 2 - Waste Transport/Eastern & Central Teams,External Contractors Charges,4570,ADDITIONAL PROPERTIES - JULY 2016,24/08/2016,426290,717.33,Revenue,FCC Environment Services (UK) Ltd,131612
South Ribble Council,http://statistics.data.gov.uk/doc/local-authority/30UN,Area 2 - Waste Transport/Eastern & Central Teams,Advertising,4842,BIN CARD AND STICKERS,24/08/2016,426290,"3,750.00",Revenue,FCC Environment Services (UK) Ltd,131612
South Ribble Council,http://statistics.data.gov.uk/doc/local-authority/30UN,Area 2 - Waste Transport/Eastern & Central Teams,Balance Sheet,30,RETENTION,24/08/2016,426290,"-2,589.41",Revenue,FCC Environment Services (UK) Ltd,131612
South Ribble Council,http://statistics.data.gov.uk/doc/local-authority/30UN,Area 2 - Waste Transport/Eastern & Central Teams,Balance Sheet,30,RETENTION,24/08/2016,426290,"-3,660.29",Revenue,FCC Environment Services (UK) Ltd,131612
South Ribble Council,http://statistics.data.gov.uk/doc/local-authority/30UN,Area 3 - Parks/Leyland East West,Materials General,4040,3m x 2m Self Assembly Dipping Platform with Handrail & Associated Posts As per quotation by NAME REDACTED,26/08/2016,426155,"1,455.74",Revenue,FILCRIS LTD,130545
South Ribble Council,http://statistics.data.gov.uk/doc/local-authority/30UN,Property Services,Rep & Maint Premises,2020,Please attend Ryefield Garages to block off the gate between garages  7 & 8,24/08/2016,426142,275.00,Revenue,G S F (Lancs) Ltd,131474
South Ribble Council,http://statistics.data.gov.uk/doc/local-authority/30UN,Regeneration,Printing,4125,15 rolls of Performance Uncoated inkjet paper 90gsm - size 841 x 110 6 rolls of Performance Uncoated inkjet paper 90gsm  ,05/08/2016,425932,302.35,Revenue,GCS UK ASSOCIATES LTD,130671
South Ribble Council,http://statistics.data.gov.uk/doc/local-authority/30UN,Area 2 - Waste Transport/Eastern & Central Teams,Materials General,4040,Materials General,17/08/2016,425290,343.23,Revenue,GIBSONS GARDEN MACHINERY LTD,59051
South Ribble Council,http://statistics.data.gov.uk/doc/local-authority/30UN,Area 2 - Waste Transport/Eastern & Central Teams,Materials General,4040,Materials General,17/08/2016,425799,252.30,Revenue,GIBSONS GARDEN MACHINERY LTD,59051
South Ribble Council,http://statistics.data.gov.uk/doc/local-authority/30UN,Area 2 - Waste Transport/Eastern & Central Teams,Materials General,4040,2 REAR HUB SEAL KITS - PO12 FOJ - JFC6849 - BO,31/08/2016,426479,356.31,Revenue,GIBSONS GARDEN MACHINERY LTD,59051
South Ribble Council,http://statistics.data.gov.uk/doc/local-authority/30UN,Area 2 - Waste Transport/Eastern & Central Teams,Materials General,4040,1 x PROXY-BIN 368 -,24/08/2016,426254,297.60,Revenue,H & J SERVICES LTD,114446
South Ribble Council,http://statistics.data.gov.uk/doc/local-authority/30UN,Area 2 - Waste Transport/Eastern & Central Teams,Materials General,4040,4 SETS OF BRAKE PADS - BIN 539,24/08/2016,426322,340.00,Revenue,H & J SERVICES LTD,114446
South Ribble Council,http://statistics.data.gov.uk/doc/local-authority/30UN,Area 2 - Waste Transport/Eastern & Central Teams,Materials General,4040,FILTERS (IMPREST STOCK),24/08/2016,426323,323.65,Revenue,H & J SERVICES LTD,114446
South Ribble Council,http://statistics.data.gov.uk/doc/local-authority/30UN,Information Services,Training Expense-Course Fees,1420,"Summer Workshop and UGM, 7th & 8th July - delegate NAME REDACTED",17/08/2016,426203,445.00,Revenue,HALAROSE LTD,24358
South Ribble Council,http://statistics.data.gov.uk/doc/local-authority/30UN,Neighbourhood Admin & Support,Vehicle Running Costs,3132,"15,000 litres DIESEL (@0.8646 per litre)",17/08/2016,426143,"10,832.50",Revenue,Hall Fuels trading name of WFL (UK) Ltd,116758
South Ribble Council,http://statistics.data.gov.uk/doc/local-authority/30UN,Area 2 - Waste Transport/Eastern & Central Teams,External Contractors Charges,4570,SPEC REPAIR - PWR03A2 - JFC7174 - BO,12/08/2016,425982,360.98,Revenue,HANSON CLEANING EQUIPMENT LIMITED,121293
South Ribble Council,http://statistics.data.gov.uk/doc/local-authority/30UN,Property Services,Capital Expenditure,C230,Capital Expenditure,03/08/2016,376677,"8,744.94",Revenue,HARRY FAIRCLOUGH CONSTUCTION LTD,130974
South Ribble Council,http://statistics.data.gov.uk/doc/local-authority/30UN,Property Services,Capital Expenditure,C230,Electrical upgrading works to roofing at the Civic Centre,03/08/2016,425886,"6,644.94",Revenue,HARRY FAIRCLOUGH CONSTUCTION LTD,130974
South Ribble Council,http://statistics.data.gov.uk/doc/local-authority/30UN,Area 2 - Waste Transport/Eastern & Central Teams,Materials General,4040,FABRICATION KIT - PO13UUM - 7239,31/08/2016,426075,"2,579.28",Revenue,HEIL EUROPE LTD,130575
South Ribble Council,http://statistics.data.gov.uk/doc/local-authority/30UN,HR & Communications,Advertising,4848,"HOLD THE FRONT PAGE, JOB ADVERT FOR PUBLIC RELATIONS OFFICERCLOSING DATE 31ST AUGUST 2016 @",17/08/2016,426228,375.00,Revenue,Hold The Front Page LTD,131467
South Ribble Council,http://statistics.data.gov.uk/doc/local-authority/30UN,Information Services,Capital Expenditure,C234,Technical Consultancy as per quote ref: South Ribble SDE Upgrade 250716,05/08/2016,425975,950.00,Revenue,IDOX PLC,104485
South Ribble Council,http://statistics.data.gov.uk/doc/local-authority/30UN,Information Services,Capital Expenditure,C234,Lalpac Upgrade and training - remaining 50% of original quote,05/08/2016,426020,"5,000.00",Revenue,IDOX PLC,104485
South Ribble Council,http://statistics.data.gov.uk/doc/local-authority/30UN,Neighbourhood Admin & Support,Materials General,4040,QUICK SET CONCRETE - QC10,17/08/2016,426050,"1,228.64",Revenue,INSTARMAC GROUP PLC,24905
South Ribble Council,http://statistics.data.gov.uk/doc/local-authority/30UN,Information Services,Peripherals,4247,"Out of Hours Engineering time, 0.50, as per quote ref: SQ005159",12/08/2016,426118,712.50,Revenue,INTRINSIC TECHNOLOGY LTD,130439
South Ribble Council,http://statistics.data.gov.uk/doc/local-authority/30UN,Planning,Professional Fees,4510,Urban Design Consultancy for Cuerden Strategic Site - Site meeting and walk over the western site with NAME REDACTED.,26/08/2016,426206,592.75,Revenue,Jerry Spencer Associates Ltd,132043
South Ribble Council,http://statistics.data.gov.uk/doc/local-authority/30UN,Planning,Professional Fees,4510,Meeting with project team at South Ribble council offices visit to the eastern side of Cuerden neighbouring Cuerden Valley Park ,26/08/2016,426206,319.55,Revenue,Jerry Spencer Associates Ltd,132043
South Ribble Council,http://statistics.data.gov.uk/doc/local-authority/30UN,Planning,Professional Fees,4510,Dev of a vision and high level principles for development. Production of possible alternative distribution of uses and road layout,26/08/2016,426206,425.00,Revenue,Jerry Spencer Associates Ltd,132043
South Ribble Council,http://statistics.data.gov.uk/doc/local-authority/30UN,Planning,Advertising,4841,Public notices for planning applications.,10/08/2016,425775,551.25,Revenue,JOHNSTON PUBLISHING (NORTH WEST),11345
South Ribble Council,http://statistics.data.gov.uk/doc/local-authority/30UN,Planning,Advertising,4841,Public notices for planning applications.,10/08/2016,425776,525.00,Revenue,JOHNSTON PUBLISHING (NORTH WEST),11345
South Ribble Council,http://statistics.data.gov.uk/doc/local-authority/30UN,Planning,Advertising,4841,Public notices for planning applications.,10/08/2016,425777,656.25,Revenue,JOHNSTON PUBLISHING (NORTH WEST),11345
South Ribble Council,http://statistics.data.gov.uk/doc/local-authority/30UN,Planning,Advertising,4841,Public notices for planning applications.,10/08/2016,425778,551.25,Revenue,JOHNSTON PUBLISHING (NORTH WEST),11345
South Ribble Council,http://statistics.data.gov.uk/doc/local-authority/30UN,Planning,Advertising,4841,Public notices for planning applications.,12/08/2016,426000,551.25,Revenue,JOHNSTON PUBLISHING (NORTH WEST),11345
South Ribble Council,http://statistics.data.gov.uk/doc/local-authority/30UN,Planning,Advertising,4841,Public notices for planning applications.,12/08/2016,426076,525.00,Revenue,JOHNSTON PUBLISHING (NORTH WEST),11345
South Ribble Council,http://statistics.data.gov.uk/doc/local-authority/30UN,Planning,Advertising,4841,Public notices for planning applications.,12/08/2016,426077,525.00,Revenue,JOHNSTON PUBLISHING (NORTH WEST),11345
South Ribble Council,http://statistics.data.gov.uk/doc/local-authority/30UN,Planning,Advertising,4841,Public notices for planning applications.,12/08/2016,426078,551.25,Revenue,JOHNSTON PUBLISHING (NORTH WEST),11345
South Ribble Council,http://statistics.data.gov.uk/doc/local-authority/30UN,Planning,Advertising,4841,Public notices for planning applications.,12/08/2016,426144,603.75,Revenue,JOHNSTON PUBLISHING (NORTH WEST),11345
South Ribble Council,http://statistics.data.gov.uk/doc/local-authority/30UN,Neighbourhood Admin & Support,External Contractors Charges,4570,11/2 MINI DIGGER + 1 TON DUMPER,17/08/2016,426057,280.00,Revenue,K H HIRE SERVICES,12933
South Ribble Council,http://statistics.data.gov.uk/doc/local-authority/30UN,Planning,Professional Fees,4510,"Ref: Roadferry Ltd, Carr Lane, Farington - Planning Reference 07/2016/0499/REM To Professional Services Planning Viability",03/08/2016,425954,"2,000.00",Revenue,Keppie Massie,131948
South Ribble Council,http://statistics.data.gov.uk/doc/local-authority/30UN,Planning,Professional Fees,4510,"Land off Higher Walton Road Walton Le Dale.  Planning Ref 07/2013/0548/FUL Planning viability Advice in respect of the abo",26/08/2016,426195,"1,500.00",Revenue,Keppie Massie,131948
South Ribble Council,http://statistics.data.gov.uk/doc/local-authority/30UN,Area 2 - Waste Transport/Eastern & Central Teams,Waste Disposal Charges,5112,March 2016 - Incineration of Clinical Waste,03/08/2016,425853,549.67,Revenue,LANCASHIRE TEACHING FT,120715
South Ribble Council,http://statistics.data.gov.uk/doc/local-authority/30UN,Area 2 - Waste Transport/Eastern & Central Teams,Waste Disposal Charges,5112,April 2016 - Incineration of Clinical Waste.,10/08/2016,425977,627.00,Revenue,LANCASHIRE TEACHING FT,120715
South Ribble Council,http://statistics.data.gov.uk/doc/local-authority/30UN,Area 2 - Waste Transport/Eastern & Central Teams,Waste Disposal Charges,5112,May 2016 - Incineration of Clinical Waste.,10/08/2016,425978,566.39,Revenue,LANCASHIRE TEACHING FT,120715
South Ribble Council,http://statistics.data.gov.uk/doc/local-authority/30UN,Housing,Cap Grant- Improve Grants,C570,SUPPLY AND INSTALL STAIR LIFT AS PER QUOTE AT ADDRESS REDACTED,24/08/2016,426318,"3,385.00",Revenue,LANCS COUNTY COUNCIL,41645
South Ribble Council,http://statistics.data.gov.uk/doc/local-authority/30UN,Area 1 - Penwortham Western Parishes,Professional Fees,4516,BACK OFFICE PROCESSING (@3.45 PER PCN),26/08/2016,426393,"1,100.55",Revenue,LANCS COUNTY COUNCIL,41645
South Ribble Council,http://statistics.data.gov.uk/doc/local-authority/30UN,Area 1 - Penwortham Western Parishes,Professional Fees,4516,RE-CHARGE OF TEC (@7.00 PER REG),26/08/2016,426393,112.00,Revenue,LANCS COUNTY COUNCIL,41645
South Ribble Council,http://statistics.data.gov.uk/doc/local-authority/30UN,Environmental Health,Other Misc,4851,10 x quad bike signs as per quote.,17/08/2016,426079,335.30,Revenue,LCC SIGN SHOP,27096
South Ribble Council,http://statistics.data.gov.uk/doc/local-authority/30UN,HR & Communications,Balance Sheet,30,X1 ORDER FOR SMARTPHONE,10/08/2016,426025,415.00,Revenue,LETS CONNECT,131361
South Ribble Council,http://statistics.data.gov.uk/doc/local-authority/30UN,HR & Communications,Balance Sheet,30,ORDER FOR HOME TECHNOLOGY SCHEME,10/08/2016,426026,"3,192.00",Revenue,LETS CONNECT,131361
South Ribble Council,http://statistics.data.gov.uk/doc/local-authority/30UN,Democratic Services,Other Misc,4421,USE OF VENUE AS A POLLING STATION FOR THE EU REFERENDUM ON THURSDAY 23 JUNE 201 ACCESS WILL BE ,03/08/2016,425958,150.00,Revenue,LEYLAND PENTECOSTAL FELLOWSHIP,131456
South Ribble Council,http://statistics.data.gov.uk/doc/local-authority/30UN,Democratic Services,Other Misc,4421,5th may,03/08/2016,425958,150.00,Revenue,LEYLAND PENTECOSTAL FELLOWSHIP,131456
South Ribble Council,http://statistics.data.gov.uk/doc/local-authority/30UN,Shared Financial Services,Consultancy Fees,4541,Review of Resources to be delivered by NAME REDACTED,26/08/2016,426065,"7,607.50",Revenue,LG FUTURES,121138
South Ribble Council,http://statistics.data.gov.uk/doc/local-authority/30UN,Shared Financial Services,Consultancy Fees,4541,Expenses in relation to Review of Resources delivered by NAME REDACTED,26/08/2016,426065,90.50,Revenue,LG FUTURES,121138
South Ribble Council,http://statistics.data.gov.uk/doc/local-authority/30UN,Development Enterprise & Comm Mgnt,Other Misc,485A,Coastal Communities Fund Business Grant of  360.00,24/08/2016,426300,360.00,Revenue,LONGTON VM SPORTS & SOCIAL CLUB,120676
South Ribble Council,http://statistics.data.gov.uk/doc/local-authority/30UN,Area 2 - Waste Transport/Eastern & Central Teams,External Contractors Charges,4570,SPEC REPAIR - VN10DKV - JFC 7066,10/08/2016,425941,"1,232.25",Revenue,M WILSON COMMERCIALS LIMITED,130533
South Ribble Council,http://statistics.data.gov.uk/doc/local-authority/30UN,Area 2 - Waste Transport/Eastern & Central Teams,External Contractors Charges,4570,SPEC REPAIR - PO13 UUM - JFC7239 - GA,24/08/2016,426355,"1,577.72",Revenue,M WILSON COMMERCIALS LIMITED,130533
South Ribble Council,http://statistics.data.gov.uk/doc/local-authority/30UN,Neighbourhood Admin & Support,Materials General,4040,HANDSHAW DRIVE (AS PER SRBC SPECIFICATION),17/08/2016,426062,43.00,Revenue,Main Street Signs Ltd,131922
South Ribble Council,http://statistics.data.gov.uk/doc/local-authority/30UN,Neighbourhood Admin & Support,Materials General,4040,ADDRESS REDACTED,17/08/2016,426062,43.00,Revenue,Main Street Signs Ltd,131922
South Ribble Council,http://statistics.data.gov.uk/doc/local-authority/30UN,Neighbourhood Admin & Support,Materials General,4040,ADDRESS REDACTED,17/08/2016,426062,47.00,Revenue,Main Street Signs Ltd,131922
South Ribble Council,http://statistics.data.gov.uk/doc/local-authority/30UN,Neighbourhood Admin & Support,Materials General,4040,ADDRESS REDACTED,17/08/2016,426062,48.00,Revenue,Main Street Signs Ltd,131922
South Ribble Council,http://statistics.data.gov.uk/doc/local-authority/30UN,Neighbourhood Admin & Support,Materials General,4040,ADDRESS REDACTED,17/08/2016,426062,44.00,Revenue,Main Street Signs Ltd,131922
South Ribble Council,http://statistics.data.gov.uk/doc/local-authority/30UN,Neighbourhood Admin & Support,Materials General,4040,ADDRESS REDACTED,17/08/2016,426062,45.00,Revenue,Main Street Signs Ltd,131922
South Ribble Council,http://statistics.data.gov.uk/doc/local-authority/30UN,Neighbourhood Admin & Support,Materials General,4040,ADDRESS REDACTED,17/08/2016,426062,43.00,Revenue,Main Street Signs Ltd,131922
South Ribble Council,http://statistics.data.gov.uk/doc/local-authority/30UN,Neighbourhood Admin & Support,Materials General,4040,ADDRESS REDACTED,17/08/2016,426062,10.00,Revenue,Main Street Signs Ltd,131922
South Ribble Council,http://statistics.data.gov.uk/doc/local-authority/30UN,Neighbourhood Admin & Support,Materials General,4040,ADDRESS REDACTED,17/08/2016,426062,16.00,Revenue,Main Street Signs Ltd,131922
South Ribble Council,http://statistics.data.gov.uk/doc/local-authority/30UN,Neighbourhood Admin & Support,Materials General,4040,DELIVERY CHARGE,17/08/2016,426062,29.50,Revenue,Main Street Signs Ltd,131922
South Ribble Council,http://statistics.data.gov.uk/doc/local-authority/30UN,Property Services,Rep & Maint Premises,2020,ADDRESS REDACTED,12/08/2016,426123,620.00,Revenue,MAINCOAT LTD,99244
South Ribble Council,http://statistics.data.gov.uk/doc/local-authority/30UN,Property Services,Rep & Maint Premises,2020,materials,12/08/2016,426123,"1,088.22",Revenue,MAINCOAT LTD,99244
South Ribble Council,http://statistics.data.gov.uk/doc/local-authority/30UN,Development Enterprise & Comm Mgnt,Other Misc,4851,Miscellaneous,24/08/2016,426302,"2,000.00",Revenue,MARKETING LANCASHIRE LIMITED,89885
South Ribble Council,http://statistics.data.gov.uk/doc/local-authority/30UN,Area 1 - Penwortham Western Parishes,Professional Fees,4521,PROVISION OF STRAY DOG SERVICE - TO COVER JULY 2016,12/08/2016,426163,489.82,Revenue,MORNINGSIDE KENNELS,67755
South Ribble Council,http://statistics.data.gov.uk/doc/local-authority/30UN,Healthy Communities,External Contractors Charges,4575,Capita/northern user group meeting 21st July,17/08/2016,426135,285.00,Revenue,MOSS HOUSE FARM,121808
South Ribble Council,http://statistics.data.gov.uk/doc/local-authority/30UN,Legal,Legal,4821,04/07/2016   Advice 5 hours 14/07/2016   Further advice (2 hours) *no chargeRef 458641,26/08/2016,426405,625.00,Revenue,Mr Simon Vaughan,132049
South Ribble Council,http://statistics.data.gov.uk/doc/local-authority/30UN,Information Services,Capital Expenditure,C234,Samsung Galaxy Tab S2 SM-T713N 32GB Black 9.7`` WiFi,26/08/2016,426422,630.00,Revenue,MYPREMIER LTD,130091
South Ribble Council,http://statistics.data.gov.uk/doc/local-authority/30UN,Regeneration,Other Misc,485K,"Renewal of southribbletourism.gov.uk for 2 yrs 	149.99 Renewal of visitsouthribble.gov.uk for 2 yrs 	149.99 Order 					Account",03/08/2016,425943,299.98,Revenue,NAMESCO LTD,89597
South Ribble Council,http://statistics.data.gov.uk/doc/local-authority/30UN,Property Services,Client Internal Charges,4590,"2016 / 2017 - Weekly waste removal at Leyland Market, @ 79.49 plus ad hoc pick ups as required.",12/08/2016,426082,447.96,Revenue,NEALES WASTE MANAGEMENT,130129
South Ribble Council,http://statistics.data.gov.uk/doc/local-authority/30UN,Development Enterprise & Comm Mgnt,Other Misc,4861,Longton Live 2016 payment for support,17/08/2016,426098,"1,000.00",Revenue,NAME REDACTED,131699
South Ribble Council,http://statistics.data.gov.uk/doc/local-authority/30UN,Neighbourhood Admin & Support,Materials General,4040,SCHMIDT MINI SWEEPER BRUSHES (SWINGO) - 71107/1,17/08/2016,425862,740.80,Revenue,NORTHERN MUNICIPAL SPARES LTD,117061
South Ribble Council,http://statistics.data.gov.uk/doc/local-authority/30UN,Area 1 - Penwortham Western Parishes,Professional Fees,4514,DEPLOYMENT OF OFFICERS - JULY 2016,17/08/2016,426019,"1,775.02",Revenue,NSL LTD,116868
South Ribble Council,http://statistics.data.gov.uk/doc/local-authority/30UN,Area 1 - Penwortham Western Parishes,Other Misc,4855,CASH COLLECTION & RING GO TRANSACTIONS - JULY 2016,17/08/2016,426019,239.35,Revenue,NSL LTD,116868
South Ribble Council,http://statistics.data.gov.uk/doc/local-authority/30UN,Area 2 - Waste Transport/Eastern & Central Teams,Materials General,4040,LAULER REPAIR KIT - MX04YNL - JFC 7143,10/08/2016,425763,355.76,Revenue,NTM GB LIMITED,130146
South Ribble Council,http://statistics.data.gov.uk/doc/local-authority/30UN,Information Services,Peripherals,4247, System Care Support 1/4/16 to 31/3/17,24/08/2016,426389,"5,288.00",Revenue,NVIRON LTD,28781
South Ribble Council,http://statistics.data.gov.uk/doc/local-authority/30UN,Regeneration,Other Misc,485A,Coastal Communities Fund Small Business Grant,12/08/2016,426022,500.00,Revenue,Oropendola Productions Ltd,132003
South Ribble Council,http://statistics.data.gov.uk/doc/local-authority/30UN,Regeneration,Consultancy Fees,4541,Deliver a business and innovation advice service within the specified geographical area around Longton including all the required ,12/08/2016,425741,"4,300.00",Revenue,ORVIA GROUP LTD,131952
South Ribble Council,http://statistics.data.gov.uk/doc/local-authority/30UN,Development Enterprise & Comm Mgnt,Consultancy Fees,4541,Deliver a business and innovation advice service within the specified geographical area around Longton including all the required ,17/08/2016,426175,"5,100.00",Revenue,ORVIA GROUP LTD,131952
South Ribble Council,http://statistics.data.gov.uk/doc/local-authority/30UN,Area 1 - Penwortham Western Parishes,Materials General,4040,"60,000 STELIO SELF ADHESIVE TICKETS @ 6.95 PER 1,000",03/08/2016,425849,417.00,Revenue,PAPERWORK UK LTD,108834
South Ribble Council,http://statistics.data.gov.uk/doc/local-authority/30UN,Property Services,Rep & Maint Premises,2025,"CAB - ADDRESS REDACTED Please attend site ADDRESS REDACTED, please make good to the damaged area office ",12/08/2016,426176,"1,685.00",Revenue,PDP PROPERTY SERVICES LTD,106975
South Ribble Council,http://statistics.data.gov.uk/doc/local-authority/30UN,Shared Assurance Services,Professional Fees,4510,"Property inspection and support, re the ``Property Flood Resilience Grant Programme``82 Residential Properties @ 294.00 = ",12/08/2016,426157,"12,000.00",Revenue,Pell Frischmann,132016
South Ribble Council,http://statistics.data.gov.uk/doc/local-authority/30UN,Property Services,Rep & Maint Fixed Plant,2037,Annual Contract  2016 - 2017 for the inspection of Portable Fire Extinguishers and Fire Blankets at various sites Brickcroft,12/08/2016,426018,5.30,Revenue,PENNINE FIRE & SAFETY LIMITED,117281
South Ribble Council,http://statistics.data.gov.uk/doc/local-authority/30UN,Property Services,Rep & Maint Fixed Plant,2037,Annual Contract for 2016 - 2017 for the inspection of the Portable Fire Extinguishers and Fire Blankets at various sites Civic,12/08/2016,426018,207.65,Revenue,PENNINE FIRE & SAFETY LIMITED,117281
South Ribble Council,http://statistics.data.gov.uk/doc/local-authority/30UN,Property Services,Rep & Maint Fixed Plant,2037,Annual Contract for 2016 - 2017 for the inspection of the Portable Fire Extinguishers and Fire Blankets at various sites Higher ,12/08/2016,426018,5.90,Revenue,PENNINE FIRE & SAFETY LIMITED,117281
South Ribble Council,http://statistics.data.gov.uk/doc/local-authority/30UN,Property Services,Rep & Maint Fixed Plant,2037,Annual Contract for 2016 - 2017 for the inspection of the Portable Fire Extinguishers and Fire Blankets at various sites Holland ,12/08/2016,426018,2.65,Revenue,PENNINE FIRE & SAFETY LIMITED,117281
South Ribble Council,http://statistics.data.gov.uk/doc/local-authority/30UN,Property Services,Rep & Maint Fixed Plant,2037,Annual Contract for 2016 - 2017 for the inspection of the Portable Fire Extinguishers and Fire Blankets at various sites Hurst ,12/08/2016,426018,10.60,Revenue,PENNINE FIRE & SAFETY LIMITED,117281
South Ribble Council,http://statistics.data.gov.uk/doc/local-authority/30UN,Property Services,Rep & Maint Fixed Plant,2037,Annual Contract for 2016 - 2017 for the inspection of the Portable Fire Extinguishers and Fire Blankets at various sites Leyland ,12/08/2016,426018,76.54,Revenue,PENNINE FIRE & SAFETY LIMITED,117281
South Ribble Council,http://statistics.data.gov.uk/doc/local-authority/30UN,Property Services,Rep & Maint Fixed Plant,2037,Annual Contract for 2016 - 2017 for the inspection of the Portable Fire Extinguishers and Fire Blankets at various sites ,12/08/2016,426018,2.65,Revenue,PENNINE FIRE & SAFETY LIMITED,117281
South Ribble Council,http://statistics.data.gov.uk/doc/local-authority/30UN,Property Services,Rep & Maint Fixed Plant,2037,Annual Contract for 2016 - 2017 for the inspection of the Portable Fire Extinguishers and Fire Blankets at various sites Moss,12/08/2016,426018,8.55,Revenue,PENNINE FIRE & SAFETY LIMITED,117281
South Ribble Council,http://statistics.data.gov.uk/doc/local-authority/30UN,Property Services,Rep & Maint Fixed Plant,2037,Annual Contract for 2016 - 2017 for the inspection of the Portable Fire Extinguishers and Fire Blankets at various sites Moss,12/08/2016,426018,162.68,Revenue,PENNINE FIRE & SAFETY LIMITED,117281
South Ribble Council,http://statistics.data.gov.uk/doc/local-authority/30UN,Property Services,Rep & Maint Fixed Plant,2037,"Annual Contract for 2016 - 2017 for the inspection of the Portable Fire Extinguishers and Fire Blankets at various sites  ",12/08/2016,426018,48.40,Revenue,PENNINE FIRE & SAFETY LIMITED,117281
South Ribble Council,http://statistics.data.gov.uk/doc/local-authority/30UN,Property Services,Rep & Maint Fixed Plant,2037,Annual Contract for 2016 - 2017 for the inspection of the Portable Fire Extinguishers and Fire Blankets at various sites Ranger`s ,12/08/2016,426018,2.65,Revenue,PENNINE FIRE & SAFETY LIMITED,117281
South Ribble Council,http://statistics.data.gov.uk/doc/local-authority/30UN,Property Services,Rep & Maint Fixed Plant,2037,Annual Contract for 2016 - 2017 for the inspection of the Portable Fire Extinguishers and Fire Blankets at various sites Welcome ,12/08/2016,426018,25.20,Revenue,PENNINE FIRE & SAFETY LIMITED,117281
South Ribble Council,http://statistics.data.gov.uk/doc/local-authority/30UN,Property Services,Rep & Maint Fixed Plant,2037,Annual Contract for 2016 - 2017 for the inspection of the Portable Fire Extinguishers and Fire Blankets at various sites Worden ,12/08/2016,426018,99.55,Revenue,PENNINE FIRE & SAFETY LIMITED,117281
South Ribble Council,http://statistics.data.gov.uk/doc/local-authority/30UN,Property Services,Rep & Maint Fixed Plant,2037,Annual Contract 2016-2017 for the inspection of portable fire extinguishers and fire blankets. Museum & Exhibition Centre,12/08/2016,426018,15.25,Revenue,PENNINE FIRE & SAFETY LIMITED,117281
South Ribble Council,http://statistics.data.gov.uk/doc/local-authority/30UN,Area 2 - Waste Transport/Eastern & Central Teams,Materials General,4040,40 X 1kg Dry Powder Extinguishers @ 8.85,10/08/2016,426046,354.00,Revenue,PENNINE FIRE & SAFETY LIMITED,117281
South Ribble Council,http://statistics.data.gov.uk/doc/local-authority/30UN,Area 2 - Waste Transport/Eastern & Central Teams,Materials General,4040,6 x 2kg Dry Powder Extinguishers @ 11.35,10/08/2016,426046,68.10,Revenue,PENNINE FIRE & SAFETY LIMITED,117281
South Ribble Council,http://statistics.data.gov.uk/doc/local-authority/30UN,Democratic Services,Other Misc,4421,5th may polling station,12/08/2016,425945,156.00,Revenue,PENWORTHAM TOWN COUNCIL,120731
South Ribble Council,http://statistics.data.gov.uk/doc/local-authority/30UN,Democratic Services,Other Misc,4421,23rd june,12/08/2016,425945,156.00,Revenue,PENWORTHAM TOWN COUNCIL,120731
South Ribble Council,http://statistics.data.gov.uk/doc/local-authority/30UN,Environmental Health,Professional Fees,4522,govnment fee,05/08/2016,425951,352.00,Revenue,Personnel Checks,131483
South Ribble Council,http://statistics.data.gov.uk/doc/local-authority/30UN,Environmental Health,Professional Fees,4522,admin fee,05/08/2016,425951,106.64,Revenue,Personnel Checks,131483
South Ribble Council,http://statistics.data.gov.uk/doc/local-authority/30UN,Environmental Health,Professional Fees,4522,gov fee,05/08/2016,425960,396.00,Revenue,Personnel Checks,131483
South Ribble Council,http://statistics.data.gov.uk/doc/local-authority/30UN,Environmental Health,Professional Fees,4522,admin fee,05/08/2016,425960,120.00,Revenue,Personnel Checks,131483
South Ribble Council,http://statistics.data.gov.uk/doc/local-authority/30UN,Information Services,Peripherals,4247,5 x BT Converse 2300 Black @ 56.49 each,10/08/2016,426049,282.45,Revenue,PHILLIPS BUSINESS SOLUTIONS,32214
South Ribble Council,http://statistics.data.gov.uk/doc/local-authority/30UN,Information Services,Stationery,4136, CN218 Bic Velleda Dry Wipe Board 190x260mm Blue 841360,17/08/2016,426230,263.50,Revenue,PHILLIPS BUSINESS SOLUTIONS,32214
South Ribble Council,http://statistics.data.gov.uk/doc/local-authority/30UN,Information Services,Stationery,4136,BC38439 Bic Velleda Fashion Colour Drywipe Markers Wallet of 4,17/08/2016,426230,23.50,Revenue,PHILLIPS BUSINESS SOLUTIONS,32214
South Ribble Council,http://statistics.data.gov.uk/doc/local-authority/30UN,Information Services,Stationery,4136,PER50BU Pentel Rollerball Pen Fine 0.4mm Line Blue pk 12,17/08/2016,426230,11.10,Revenue,PHILLIPS BUSINESS SOLUTIONS,32214
South Ribble Council,http://statistics.data.gov.uk/doc/local-authority/30UN,HR & Communications,Employee Related Insurance,1819,grp renewal april 2016,17/08/2016,425759,"6,125.49",Revenue,PHOENIX LIFE LTD,31532
South Ribble Council,http://statistics.data.gov.uk/doc/local-authority/30UN,HR & Communications,Payroll Suspense,1741,MEMBERSHIP SUBSCRIPTION FOR NAME REDACTED 2016 - 2017,26/08/2016,426414,275.00,Revenue,PLANNING OFFICERS SOCIETY,130614
South Ribble Council,http://statistics.data.gov.uk/doc/local-authority/30UN,Information Services,Stationery,4133,"50,000 Evolution Everyday A4 80gm15000 Evolution Business A4 90gm",17/08/2016,426222,312.50,Revenue,PREMIER PAPER GROUP LTD,22606
South Ribble Council,http://statistics.data.gov.uk/doc/local-authority/30UN,Information Services,Stationery,4133,"60,000 sheets Evolution Everyday A4 80gm15,000 sheets Evolution Business A4 90gm 2500 sheets  Papago A4 80gm Gr",24/08/2016,426311,367.03,Revenue,PREMIER PAPER GROUP LTD,22606
South Ribble Council,http://statistics.data.gov.uk/doc/local-authority/30UN,Area 2 - Waste Transport/Eastern & Central Teams,External Contractors Charges,4570,TR165 -,24/08/2016,426305,804.87,Revenue,PRESTON TYRE SPECIALISTS,109516
South Ribble Council,http://statistics.data.gov.uk/doc/local-authority/30UN,Area 2 - Waste Transport/Eastern & Central Teams,External Contractors Charges,4570,2X TYRES - VN10 DKO - JFC 7283,24/08/2016,426320,413.00,Revenue,PRESTON TYRE SPECIALISTS,109516
South Ribble Council,http://statistics.data.gov.uk/doc/local-authority/30UN,Democratic Services,Printing,4127,"2016 HEF Canvass - P.I. Ref-SG03/06786 49,000 Initial Run",17/08/2016,426217,"6,111.72",Revenue,PRINT IMAGE NETWORK LTD,89199
South Ribble Council,http://statistics.data.gov.uk/doc/local-authority/30UN,Healthy Communities,Capital Expenditure,C234,"Gregson Lane Sport England Project � Contract Administration Stage Payment 4,540.00",12/08/2016,425863,"4,540.00",Revenue,Professional Sportsturf Design (NW) Ltd.,131677
South Ribble Council,http://statistics.data.gov.uk/doc/local-authority/30UN,Information Services,Peripherals,4247,Renewal of maintenance contract N2269003 for period 23/08/16 - 22/08/17,05/08/2016,425993,617.50,Revenue,QUISS TECHNOLOGY PLC,53594
South Ribble Council,http://statistics.data.gov.uk/doc/local-authority/30UN,Regeneration,Other Misc,4851,Maintenance of toilets and Eurobins on Worden Park at Leyland Festival on Saturday 18th June 2016,05/08/2016,425730,450.00,Revenue,RED ROSE BUILDING MAINTENANCE,85410
South Ribble Council,http://statistics.data.gov.uk/doc/local-authority/30UN,Property Services,Rep & Maint Premises,2020,attend Penwortham Holme to disconnect the waste services from the cabin. Remove the flags and donate to the Houghton Lane ,12/08/2016,426096,293.00,Revenue,RED ROSE BUILDING MAINTENANCE,85410
South Ribble Council,http://statistics.data.gov.uk/doc/local-authority/30UN,Property Services,Rep & Maint Premises,2020,materials,12/08/2016,426096,275.00,Revenue,RED ROSE BUILDING MAINTENANCE,85410
South Ribble Council,http://statistics.data.gov.uk/doc/local-authority/30UN,Property Services,Rep & Maint Premises,2020,attend Penwortham Holme to disconnect the waste services from the cabin. Remove the flags and donate to the Houghton Lane ,12/08/2016,426097,270.00,Revenue,RED ROSE BUILDING MAINTENANCE,85410
South Ribble Council,http://statistics.data.gov.uk/doc/local-authority/30UN,Property Services,Operational Furniture & Equip,4013,Clear the Civic Centre grease trap at the beginning of June . Inspect before requesting the tanker as this may not be required.,31/08/2016,426453,320.00,Revenue,RED ROSE BUILDING MAINTENANCE,85410
South Ribble Council,http://statistics.data.gov.uk/doc/local-authority/30UN,Healthy Communities,Other Misc,4851,Short Term Rental of storage unit - from 16th September,17/08/2016,425732,329.31,Revenue,Red Rose Self Storage Limited,132014
South Ribble Council,http://statistics.data.gov.uk/doc/local-authority/30UN,Area 3 - Parks/Leyland East West,Capital Expenditure,C230,"RECONSTRUCTION OF 2no  MANHOLES AND ASSOCIATED PIPWORK AT SHRUGGS WOOD, LEYLAND AS PER QUOTE",26/08/2016,426095,"4,320.00",Revenue,Reid Construction & Civil Engineering Ltd,131544
South Ribble Council,http://statistics.data.gov.uk/doc/local-authority/30UN,Area 3 - Parks/Leyland East West,Capital Expenditure,C230,MATERIALS,26/08/2016,426095,"5,640.00",Revenue,Reid Construction & Civil Engineering Ltd,131544
South Ribble Council,http://statistics.data.gov.uk/doc/local-authority/30UN,Area 2 - Waste Transport/Eastern & Central Teams,External Contractors Charges,4570,SPEC REPAIR - PN58WKH - JFC 7141,24/08/2016,426248,394.05,Revenue,RIBBLESDALE AUTO ELECTRICS 1992 LTD,33129
South Ribble Council,http://statistics.data.gov.uk/doc/local-authority/30UN,HR & Communications,Training Expense-Course Fees,1402,AIR QUALITY SEMINARS FOR ENVIRONMENTAL HEALTH BEFORE MARCH 2017,24/08/2016,426308,520.00,Revenue,RICARDO-AEA LIMITED,130794
South Ribble Council,http://statistics.data.gov.uk/doc/local-authority/30UN,Information Services,Lease Rental Charges,4036,Lease Rental Charge,24/08/2016,426242,"1,866.00",Revenue,RICOH (UK) LTD,82976
South Ribble Council,http://statistics.data.gov.uk/doc/local-authority/30UN,Information Services,Lease Rental Charges,4036,Lease Rental Charge,26/08/2016,426387,"10,389.60",Revenue,RICOH (UK) LTD,82976
South Ribble Council,http://statistics.data.gov.uk/doc/local-authority/30UN,Property Services,Operational Furniture & Equip,4010,isurv  Basic valuation and the Red Book Online subscription,24/08/2016,426274,299.00,Revenue,RICS,33307
South Ribble Council,http://statistics.data.gov.uk/doc/local-authority/30UN,Area 2 - Waste Transport/Eastern & Central Teams,Operational Furniture & Equip,4010,REPAIR CALIBRATION OF GARAGE EQUIPTMENT,17/08/2016,426212,601.90,Revenue,S & R GARAGE EQUIPMENT,130892
South Ribble Council,http://statistics.data.gov.uk/doc/local-authority/30UN,Area 2 - Waste Transport/Eastern & Central Teams,External Contractors Charges,4570,Brake Tester Repair. (NAME REDACTED),17/08/2016,426213,260.00,Revenue,S & R GARAGE EQUIPMENT,130892
South Ribble Council,http://statistics.data.gov.uk/doc/local-authority/30UN,Area 2 - Waste Transport/Eastern & Central Teams,External Contractors Charges,4570,SPEC REPAIR - PL08 MLK - JFC7114 - GA,10/08/2016,425994,706.00,Revenue,S.J. & C.W. WILKINSONS LTD,131536
South Ribble Council,http://statistics.data.gov.uk/doc/local-authority/30UN,Property Services,Energy Costs,2304,8/7/16 to 7/8/16,24/08/2016,426275,603.41,Revenue,SCOTTISH HYDRO ELECTRIC,130051
South Ribble Council,http://statistics.data.gov.uk/doc/local-authority/30UN,Property Services,Energy Costs,2307,ccl,24/08/2016,426275,14.84,Revenue,SCOTTISH HYDRO ELECTRIC,130051
South Ribble Council,http://statistics.data.gov.uk/doc/local-authority/30UN,Property Services,Energy Costs,2303,2/5/16 to 1/8/16,31/08/2016,426437,347.45,Revenue,SCOTTISH HYDRO ELECTRIC,130051
South Ribble Council,http://statistics.data.gov.uk/doc/local-authority/30UN,Property Services,Energy Costs,2303,ccl,31/08/2016,426437,19.38,Revenue,SCOTTISH HYDRO ELECTRIC,130051
South Ribble Council,http://statistics.data.gov.uk/doc/local-authority/30UN,Property Services,Energy Costs,2303,1/7/16 to 31/7/16,31/08/2016,426438,"1,020.82",Revenue,SCOTTISH HYDRO ELECTRIC,130051
South Ribble Council,http://statistics.data.gov.uk/doc/local-authority/30UN,Property Services,Energy Costs,2307,ccl,31/08/2016,426438,52.78,Revenue,SCOTTISH HYDRO ELECTRIC,130051
South Ribble Council,http://statistics.data.gov.uk/doc/local-authority/30UN,Property Services,Energy Costs,2303,1/7/16 to 31/7/16,31/08/2016,426440,"2,736.57",Revenue,SCOTTISH HYDRO ELECTRIC,130051
South Ribble Council,http://statistics.data.gov.uk/doc/local-authority/30UN,Property Services,Energy Costs,2307,ccl,31/08/2016,426440,142.85,Revenue,SCOTTISH HYDRO ELECTRIC,130051
South Ribble Council,http://statistics.data.gov.uk/doc/local-authority/30UN,Property Services,Energy Costs,2303,1/7/16 to 31/7/16,31/08/2016,426445,"1,655.72",Revenue,SCOTTISH HYDRO ELECTRIC,130051
South Ribble Council,http://statistics.data.gov.uk/doc/local-authority/30UN,Property Services,Energy Costs,2307,ccl,31/08/2016,426445,89.75,Revenue,SCOTTISH HYDRO ELECTRIC,130051
South Ribble Council,http://statistics.data.gov.uk/doc/local-authority/30UN,Information Services,Capital Expenditure,C234,As per quote ref: E15-0389.  Secure Power EP80P-PM Diesel Generator,24/08/2016,425004,"19,107.15",Revenue,SECURE POWER LTD,131336
South Ribble Council,http://statistics.data.gov.uk/doc/local-authority/30UN,Information Services,Capital Expenditure,C234,First fill of fuel & fuel for test,24/08/2016,425004,835.00,Revenue,SECURE POWER LTD,131336
South Ribble Council,http://statistics.data.gov.uk/doc/local-authority/30UN,Healthy Communities,Consultancy Fees,4536,"R & M 2016/17 payable by 12 payments of 14,931.44 + VAT",24/08/2016,426266,"44,794.32",Revenue,SERCO LEISURE (OP) LTD,94906
South Ribble Council,http://statistics.data.gov.uk/doc/local-authority/30UN,Healthy Communities,Consultancy Fees,4536,"R & M 2016/17 payable by 12 payments of 14,931.44 + VAT",24/08/2016,426267,"14,931.44",Revenue,SERCO LEISURE (OP) LTD,94906
South Ribble Council,http://statistics.data.gov.uk/doc/local-authority/30UN,Healthy Communities,Consultancy Fees,4536,"R & M 2016/17 payable by 12 payments of 14,931.44 + VAT",24/08/2016,426268,"14,931.44",Revenue,SERCO LEISURE (OP) LTD,94906
South Ribble Council,http://statistics.data.gov.uk/doc/local-authority/30UN,Customer Contact,Training Expense-Course Fees,1402,please reserve 4 x places for the Tackling  Homelessness Conference in Manchester on 27th September 2016 Delegates,03/08/2016,425887,560.00,Revenue,SHELTER PUBLICATIONS,34568
South Ribble Council,http://statistics.data.gov.uk/doc/local-authority/30UN,Information Services,Professional Fees,4520,Shredding of Confidential Waste 2016/17,26/08/2016,426400,260.40,Revenue,SHRED-IT LTD,109134
South Ribble Council,http://statistics.data.gov.uk/doc/local-authority/30UN,Area 3 - Parks/Leyland East West,Grounds Maint Cntrctrs Chgs,4657,Reinstatement work at Worden Park Arboretum as per quotation.,17/08/2016,426042,"3,400.00",Revenue,Singleton Landwork Ltd,131959
South Ribble Council,http://statistics.data.gov.uk/doc/local-authority/30UN,Area 3 - Parks/Leyland East West,Grounds Maint Cntrctrs Chgs,4657,REINSTATEMENT WORKS AT FOREST WAY AND WORDEN PARK FISH POND AS PER QUOTE DATED 7/7/16,17/08/2016,426043,"1,490.00",Revenue,Singleton Landwork Ltd,131959
South Ribble Council,http://statistics.data.gov.uk/doc/local-authority/30UN,Information Services,Peripherals,4247,Cerberus FTP Server upgrade to Enterprise edition - Single Licence + 1 year support & updates,24/08/2016,426283,480.00,Revenue,SOFTCAT LIMITED,130963
South Ribble Council,http://statistics.data.gov.uk/doc/local-authority/30UN,Property Services,Rep & Maint Premises,2025,Penwortham Holme - Please carry out the work as per your quote dated 14th July 2016,03/08/2016,425833,"1,450.00",Revenue,Specialised Cleaning Services (North West) Ltd,132018
South Ribble Council,http://statistics.data.gov.uk/doc/local-authority/30UN,Property Services,Rep & Maint Premises,2025,extra`s,03/08/2016,425833,150.00,Revenue,Specialised Cleaning Services (North West) Ltd,132018
South Ribble Council,http://statistics.data.gov.uk/doc/local-authority/30UN,HR & Communications,Training Expense-Course Fees,1407,VDU EYETEST VOUCHERS X20,12/08/2016,426093,340.00,Revenue,SPECSAVERS,131609
South Ribble Council,http://statistics.data.gov.uk/doc/local-authority/30UN,Area 2 - Waste Transport/Eastern & Central Teams,Contract Hire & Lease Costs,3212,1 LUTON VAN RECHARGE TO FCC ON OW1146,24/08/2016,426178,731.50,Revenue,STAN CAR & VAN HIRE LTD,130025
South Ribble Council,http://statistics.data.gov.uk/doc/local-authority/30UN,Healthy Communities,Sports Dev Expenses,4890," 1.To supply filming and editing services for the South Ribble Sports Awards 2016 Videos (11 Films) - 2200.00 2. Nominees",03/08/2016,425864,"2,750.00",Revenue,STANLEY ROAD FILM AND MEDIA LTD,131214
South Ribble Council,http://statistics.data.gov.uk/doc/local-authority/30UN,Development Enterprise & Comm Mgnt,Other Misc,485I,"Truck Trail  13 panels design and artwork at 185 each. Total 2,405",12/08/2016,426110,"2,405.00",Revenue,STONE CREATE LTD,130896
South Ribble Council,http://statistics.data.gov.uk/doc/local-authority/30UN,Development Enterprise & Comm Mgnt,Other Misc,485I,"Truck Trail � manufacturing of 13 panels at 140 each, wording for panels at 150 for all and location map panel at 140.",12/08/2016,426111,"2,580.00",Revenue,STONE CREATE LTD,130896
South Ribble Council,http://statistics.data.gov.uk/doc/local-authority/30UN,Revenues Plus,Stationery,4130,1500 green mover forms,24/08/2016,426312,785.00,Revenue,SYSTEM CELL LTD,108122
South Ribble Council,http://statistics.data.gov.uk/doc/local-authority/30UN,Regeneration,Capital Expenditure,C234,Charges for work undertaken in relation to licences for works to forecourt and in respect of the   Iron Tree. in Bamber Bridge.,12/08/2016,426017,750.00,Revenue,Temple Heelis Solicitors,132008
South Ribble Council,http://statistics.data.gov.uk/doc/local-authority/30UN,Area 2 - Waste Transport/Eastern & Central Teams,Materials General,4040,1 OPERATION STATION - VN10DKL -JFC 7234,10/08/2016,425983,730.77,Revenue,TERBERG MATEC UK LTD,58625
South Ribble Council,http://statistics.data.gov.uk/doc/local-authority/30UN,Area 2 - Waste Transport/Eastern & Central Teams,Materials General,4040,"2 brushes, 1 bolt kit, PJ62 UCM, JFC6232. (NAME REDACTED)",12/08/2016,426066,298.25,Revenue,TERBERG MATEC UK LTD,58625
South Ribble Council,http://statistics.data.gov.uk/doc/local-authority/30UN,Area 2 - Waste Transport/Eastern & Central Teams,Materials General,4040,1 LOLER KIT - PO13 UUM - JFC7230 - GA,24/08/2016,426089,787.50,Revenue,TERBERG MATEC UK LTD,58625
South Ribble Council,http://statistics.data.gov.uk/doc/local-authority/30UN,Area 2 - Waste Transport/Eastern & Central Teams,Materials General,4040,1 LOLER KIT - NX58 FJZ - JFC7231 - GA,17/08/2016,426090,988.22,Revenue,TERBERG MATEC UK LTD,58625
South Ribble Council,http://statistics.data.gov.uk/doc/local-authority/30UN,Housing,Contributions,4730,Supply and fit upvc double glazing as part of winter warmth scheme,17/08/2016,426238,404.17,Revenue,TRADE WINDOWS & CONSERVATORIES,119823
South Ribble Council,http://statistics.data.gov.uk/doc/local-authority/30UN,Housing,Contributions,4730,Supply and fit upvc double glazing as part of winter warmth scheme,17/08/2016,426239,675.00,Revenue,TRADE WINDOWS & CONSERVATORIES,119823
South Ribble Council,http://statistics.data.gov.uk/doc/local-authority/30UN,Housing,Contributions,4730,Supply and fit upvc double glazing as part of winter warmth scheme,17/08/2016,426240,404.17,Revenue,TRADE WINDOWS & CONSERVATORIES,119823
South Ribble Council,http://statistics.data.gov.uk/doc/local-authority/30UN,Healthy Communities,Provisions,4310,Tea room stock,31/08/2016,426356,145.58,Revenue,TREVORS FOOD SERVICE,130829
South Ribble Council,http://statistics.data.gov.uk/doc/local-authority/30UN,Healthy Communities,Provisions,4310,none vat items,31/08/2016,426356,127.95,Revenue,TREVORS FOOD SERVICE,130829
South Ribble Council,http://statistics.data.gov.uk/doc/local-authority/30UN,Area 1 - Penwortham Western Parishes,External Contractors Charges,4570,SIGN CLEANING WITHIN THE SOUTH RIBBLE BOROUGH. TO COMMENCE THURSDAY 21.7.16 UNTIL WEDENESDAY,12/08/2016,426088,"1,400.00",Revenue,ULTRA CLEAN CONSERVATORIES,130034
South Ribble Council,http://statistics.data.gov.uk/doc/local-authority/30UN,Environmental Health,Consultancy Fees,4542,Analysis of Water Samples from April 16 - March 17.,03/08/2016,425834,269.60,Revenue,UNITED UTILITIES WATER PLC,130293
South Ribble Council,http://statistics.data.gov.uk/doc/local-authority/30UN,Property Services,Water Charges,2511,14/2/16 to 13/5/16,24/08/2016,426301,"2,809.85",Revenue,UNITED UTILITIES WATER PLC,29845
South Ribble Council,http://statistics.data.gov.uk/doc/local-authority/30UN,Property Services,Water Charges,2511,17/5/16 to 3/8/16,24/08/2016,426364,"1,983.63",Revenue,UNITED UTILITIES WATER PLC,29845
South Ribble Council,http://statistics.data.gov.uk/doc/local-authority/30UN,Property Services,Water Charges,2511,13/5/16 to 11/8/16,26/08/2016,426417,595.28,Revenue,UNITED UTILITIES WATER PLC,29845
South Ribble Council,http://statistics.data.gov.uk/doc/local-authority/30UN,Property Services,Operational Furniture & Equip,4012,Annual Contract for Vending Equipment and Environmental charges  for 2016/2017,05/08/2016,425950,322.09,Revenue,VENDING ENTERPRISES,101501
South Ribble Council,http://statistics.data.gov.uk/doc/local-authority/30UN,Democratic Services,Other Expenses,463A,"provide traffic management on Sunday, 5 June, 2016 for the Mayor`s Civic Sunday Parade as discussed with NAME REDACTED",12/08/2016,425835,700.00,Revenue,VENTBROOK LTD,131218
South Ribble Council,http://statistics.data.gov.uk/doc/local-authority/30UN,Information Services,Peripherals,4247,"Annual purchase order for link, internet & router for period 01/04/16 - 31/03/17",05/08/2016,425996,"1,312.66",Revenue,VODAFONE RE:CABLE & WIRELESS UK,130810
South Ribble Council,http://statistics.data.gov.uk/doc/local-authority/30UN,Property Services,Rep & Maint Premises,2020,To provide architectural services for Penwortham Leisure Centre - New Fire Escape inv no 16/17/11 date 11/8/2016 working draw,24/08/2016,426221,590.00,Revenue,Watson Stirrup Architects Ltd,131433
South Ribble Council,http://statistics.data.gov.uk/doc/local-authority/30UN,Area 2 - Waste Transport/Eastern & Central Teams,Cap Vehicles,C440,4  x NV200 Small Vans,26/08/2016,426395,"9,944.05",Revenue,Westway Nissan,131964
South Ribble Council,http://statistics.data.gov.uk/doc/local-authority/30UN,Area 2 - Waste Transport/Eastern & Central Teams,Cap Vehicles,C440,tax & reg,26/08/2016,426395,285.00,Revenue,Westway Nissan,131964
South Ribble Council,http://statistics.data.gov.uk/doc/local-authority/30UN,Area 2 - Waste Transport/Eastern & Central Teams,Cap Vehicles,C440,4  x NV200 Small Vans,26/08/2016,426396,"9,944.05",Revenue,Westway Nissan,131964
South Ribble Council,http://statistics.data.gov.uk/doc/local-authority/30UN,Area 2 - Waste Transport/Eastern & Central Teams,Cap Vehicles,C440,tax & reg,26/08/2016,426396,285.00,Revenue,Westway Nissan,131964
South Ribble Council,http://statistics.data.gov.uk/doc/local-authority/30UN,Area 2 - Waste Transport/Eastern & Central Teams,Cap Vehicles,C440,4  x NV200 Small Vans,26/08/2016,426397,"9,944.05",Revenue,Westway Nissan,131964
South Ribble Council,http://statistics.data.gov.uk/doc/local-authority/30UN,Area 2 - Waste Transport/Eastern & Central Teams,Cap Vehicles,C440,tax & reg,26/08/2016,426397,285.00,Revenue,Westway Nissan,131964
South Ribble Council,http://statistics.data.gov.uk/doc/local-authority/30UN,Area 2 - Waste Transport/Eastern & Central Teams,Cap Vehicles,C440,4  x NV200 Small Vans,26/08/2016,426398,"9,944.05",Revenue,Westway Nissan,131964
South Ribble Council,http://statistics.data.gov.uk/doc/local-authority/30UN,Area 2 - Waste Transport/Eastern & Central Teams,Cap Vehicles,C440,tax & reg,26/08/2016,426398,285.00,Revenue,Westway Nissan,131964
South Ribble Council,http://statistics.data.gov.uk/doc/local-authority/30UN,Revenues Plus,Postage,4291,Revenues mail services July 2016,05/08/2016,425908,380.31,Revenue,WHISTL  UK LTD,131310
South Ribble Council,http://statistics.data.gov.uk/doc/local-authority/30UN,Revenues Plus,Postage,4291,Revenues mail services July 2016,12/08/2016,426107,577.73,Revenue,WHISTL  UK LTD,131310
South Ribble Council,http://statistics.data.gov.uk/doc/local-authority/30UN,Revenues Plus,Postage,4291,Revenues mail services August 2016,12/08/2016,426149,525.45,Revenue,WHISTL  UK LTD,131310
South Ribble Council,http://statistics.data.gov.uk/doc/local-authority/30UN,Revenues Plus,Postage,4291,Revenues mail services August 2016,31/08/2016,426351,394.74,Revenue,WHISTL  UK LTD,131310
South Ribble Council,http://statistics.data.gov.uk/doc/local-authority/30UN,Revenues Plus,Postage,4291,Revenues mail services August 2016,31/08/2016,426383,429.55,Revenue,WHISTL  UK LTD,131310
South Ribble Council,http://statistics.data.gov.uk/doc/local-authority/30UN,Revenues Plus,Postage,4291,Revenues mail services August 2016,31/08/2016,426463,459.66,Revenue,WHISTL  UK LTD,131310
South Ribble Council,http://statistics.data.gov.uk/doc/local-authority/30UN,Area 3 - Parks/Leyland East West,Grounds Maint Cntrctrs Chgs,4657,"2x sets B610- Spec Replacement Chains, Sleeves & Shackles for Hammocks @ 131.00",17/08/2016,426087,262.00,Revenue,WICKSTEED LEISURE LTD,38661
South Ribble Council,http://statistics.data.gov.uk/doc/local-authority/30UN,Area 3 - Parks/Leyland East West,Grounds Maint Cntrctrs Chgs,4657,8.5% Carriage,17/08/2016,426087,22.27,Revenue,WICKSTEED LEISURE LTD,38661
South Ribble Council,http://statistics.data.gov.uk/doc/local-authority/30UN,Area 3 - Parks/Leyland East West,Grounds Maint Cntrctrs Chgs,4657,Worden Park Signage: 9 Large Aluminium Plates with Channels and Reflective Text,17/08/2016,425753,"2,628.00",Revenue,WOODSTOCK SIGNS,39039
South Ribble Council,http://statistics.data.gov.uk/doc/local-authority/30UN,Area 3 - Parks/Leyland East West,Grounds Maint Cntrctrs Chgs,4657,12 No Medium Aluminium Plates with Channels and Reflective Text,17/08/2016,425753,"1,440.00",Revenue,WOODSTOCK SIGNS,39039
South Ribble Council,http://statistics.data.gov.uk/doc/local-authority/30UN,Area 3 - Parks/Leyland East West,Grounds Maint Cntrctrs Chgs,4657,24 No 120 x 120 x 2100mm Larch Posts,17/08/2016,425753,"1,080.00",Revenue,WOODSTOCK SIGNS,39039
South Ribble Council,http://statistics.data.gov.uk/doc/local-authority/30UN,Area 3 - Parks/Leyland East West,Grounds Maint Cntrctrs Chgs,4657,10no ALUMINIUM PLATES WITH `FARMYARD WOOD ENTRANCE` AND `NO PARKING` OVERLAYS,26/08/2016,426272,300.00,Revenue,WOODSTOCK SIGNS,39039
South Ribble Council,http://statistics.data.gov.uk/doc/local-authority/30UN,Neighbourhood Admin & Support,Grounds Maint Cntrctrs Chgs,4657,"SUPPLY AND FIT METAL ENVELOPE, 14 INSERTS AND REFLECTIVE TEXT ON ENTRANCE SIGN - WORDEN PARK",26/08/2016,426273,410.00,Revenue,WOODSTOCK SIGNS,39039
South Ribble Council,http://statistics.data.gov.uk/doc/local-authority/30UN,Property Services,Rep & Maint Premises,2020,Please attend ADDRESSES REDACTED toilets and connect 2 over sink water heaters to the water supply  at each location ,17/08/2016,426185,573.60,Revenue,Wright Build Limited,131203
South Ribble Council,http://statistics.data.gov.uk/doc/local-authority/30UN,Neighbourhood Admin & Support,Materials General,4040,LUBRICATION SPRAY 2040 (89008500),26/08/2016,426394,112.60,Revenue,WURTH UK LTD,69106
South Ribble Council,http://statistics.data.gov.uk/doc/local-authority/30UN,Neighbourhood Admin & Support,Materials General,4040,BRAKE CLEANER (8901087),26/08/2016,426394,79.80,Revenue,WURTH UK LTD,69106
South Ribble Council,http://statistics.data.gov.uk/doc/local-authority/30UN,Neighbourhood Admin & Support,Materials General,4040,SPRAY GREASE (HSW100),26/08/2016,426394,130.20,Revenue,WURTH UK LTD,69106
South Ribble Council,http://statistics.data.gov.uk/doc/local-authority/30UN,Planning,Professional Fees,4510,SRBC retail study stage 1 Market Research,12/08/2016,425952,"15,930.00",Revenue,WYG ENVIRONMENT TRANSPORT LIMITED,130177
South Ribble Council,http://statistics.data.gov.uk/doc/local-authority/30UN,Planning,Professional Fees,4510,Cuerden development advice,12/08/2016,425953,930.00,Revenue,WYG ENVIRONMENT TRANSPORT LIMITED,130177
South Ribble Council,http://statistics.data.gov.uk/doc/local-authority/30UN,Planning,Professional Fees,4510,South Ribble Retainer Agreement 2016/17 Retainer Fee,26/08/2016,426428,"2,750.00",Revenue,WYG ENVIRONMENT TRANSPORT LIMITED,130177
South Ribble Council,http://statistics.data.gov.uk/doc/local-authority/30UN,Shared Financial Services,General Travel Costs,3411,travel cost,17/08/2016,425447,-143.00,Revenue,Barclays Bank Plc,130842
South Ribble Council,http://statistics.data.gov.uk/doc/local-authority/30UN,Shared Financial Services,Consultancy Fees,4541,Consultancy fees,17/08/2016,425447,145.50,Revenue,Barclays Bank Plc,130842
South Ribble Council,http://statistics.data.gov.uk/doc/local-authority/30UN,Shared Financial Services,Training Expense-Course Fees,1402,training course fees,17/08/2016,425447,65.00,Revenue,Barclays Bank Plc,130842
South Ribble Council,http://statistics.data.gov.uk/doc/local-authority/30UN,Shared Financial Services,General Travel Costs,3411,travel cost,17/08/2016,425447,85.75,Revenue,Barclays Bank Plc,130842
South Ribble Council,http://statistics.data.gov.uk/doc/local-authority/30UN,Shared Financial Services,Rents,2403,rent,17/08/2016,425447,140.85,Revenue,Barclays Bank Plc,130842
South Ribble Council,http://statistics.data.gov.uk/doc/local-authority/30UN,Shared Financial Services,Rents,2403,rent,17/08/2016,425447,140.85,Revenue,Barclays Bank Plc,130842
South Ribble Council,http://statistics.data.gov.uk/doc/local-authority/30UN,Shared Financial Services,Other Misc,4851,Miscellaneous,17/08/2016,425447,195.00,Revenue,Barclays Bank Plc,130842
South Ribble Council,http://statistics.data.gov.uk/doc/local-authority/30UN,Shared Financial Services,Professional Fees,4510,prof fees,17/08/2016,425447,50.16,Revenue,Barclays Bank Plc,130842
South Ribble Council,http://statistics.data.gov.uk/doc/local-authority/30UN,Shared Financial Services,Legal,4822,legal,17/08/2016,425447,"3,549.00",Revenue,Barclays Bank Plc,130842
South Ribble Council,http://statistics.data.gov.uk/doc/local-authority/30UN,Shared Financial Services,Legal,4822,legal,17/08/2016,425447,210.00,Revenue,Barclays Bank Plc,130842
South Ribble Council,http://statistics.data.gov.uk/doc/local-authority/30UN,Shared Financial Services,Legal,4821,legal,17/08/2016,425447,100.00,Revenue,Barclays Bank Plc,130842
